[Event "Titled Tuesday Blitz April 05 Late 2022"]
[White "Horcajuelo Rocamora, Martin"]
[Black "Swicarz, Maciej"]
[WhiteFideId "24573027"]
[BlackFideId "1113585"]
[WhiteElo "1822"]
[BlackElo "2057"]
[Result "0-1"]
[Round "05"]
[TimeControl "180+1"]
[Date "2022.04.06"]
[WhiteClock "0:00:45"]
[BlackClock "0:01:13"]

1. e4 {[%clk 0:02:47]}  c5 {[%clk 0:02:59]} 2. Nf3 {[%clk 0:02:45]}  d6 {[%clk 0:03:00]} 3. d4 {[%clk 0:02:46]}  cxd4 {[%clk 0:03:00]} 4. Nxd4 {[%clk 0:02:47]}  Nf6 {[%clk 0:03:00]} 5. Nc3 {[%clk 0:02:47]}  a6 {[%clk 0:02:59]} 6. Bg5 {[%clk 0:02:44]}  e6 {[%clk 0:02:59]} 7. f4 {[%clk 0:02:44]}  Be7 {[%clk 0:02:59]} 8. Qf3 {[%clk 0:02:44]}  Qc7 {[%clk 0:02:59]} 9. O-O-O {[%clk 0:02:41]}  Nbd7 {[%clk 0:02:58]} 10. Bd3 {[%clk 0:02:41]}  b5 {[%clk 0:02:58]} 11. Rhe1 {[%clk 0:02:41]}  Bb7 {[%clk 0:02:57]} 12. Qg3 {[%clk 0:02:40]}  b4 {[%clk 0:02:53]} 13. Nd5 {[%clk 0:02:40]}  exd5 {[%clk 0:02:53]} 14. e5 {[%clk 0:02:40]}  dxe5 {[%clk 0:02:53]} 15. fxe5 {[%clk 0:02:40]}  Nh5 {[%clk 0:02:53]} 16. Qh4 {[%clk 0:02:41]}  Bxg5+ {[%clk 0:02:53]} 17. Qxg5 {[%clk 0:02:41]}  g6 {[%clk 0:02:53]} 18. e6 {[%clk 0:02:42]}  Nc5 {[%clk 0:02:54]} 19. exf7+ {[%clk 0:02:42]}  Kxf7 {[%clk 0:02:54]} 20. Rf1+ {[%clk 0:02:42]}  Kg7 {[%clk 0:02:52]} 21. Nf5+ {[%clk 0:02:42]}  Kg8 {[%clk 0:02:49]} 22. Nh6+ {[%clk 0:02:42]}  Kg7 {[%clk 0:02:49]} 23. Rf7+ {[%clk 0:02:42]}  Qxf7 {[%clk 0:02:49]} 24. Nxf7 {[%clk 0:02:43]}  Kxf7 {[%clk 0:02:45]} 25. Rf1+ {[%clk 0:02:43]}  Ke6 {[%clk 0:02:25]} 26. Re1+ {[%clk 0:02:37]}  Ne4 {[%clk 0:02:25]} 27. Bxe4 {[%clk 0:02:20]}  dxe4 {[%clk 0:02:25]} 28. Qc5 {[%clk 0:02:09]}  Bd5 {[%clk 0:02:11]} 29. Qxb4 {[%clk 0:02:03]}  Rhb8 {[%clk 0:02:04]} 30. Qd4 {[%clk 0:01:52]}  Nf6 {[%clk 0:02:02]} 31. c4 {[%clk 0:01:45]}  Bc6 {[%clk 0:01:55]} 32. Rf1 {[%clk 0:01:40]}  Rf8 {[%clk 0:01:51]} 33. Qc5 {[%clk 0:01:38]}  Rac8 {[%clk 0:01:44]} 34. Qb6 {[%clk 0:01:26]}  Nd7 {[%clk 0:01:32]} 35. Qg1 {[%clk 0:01:18]}  Rxf1+ {[%clk 0:01:31]} 36. Qxf1 {[%clk 0:01:19]}  Ne5 {[%clk 0:01:31]} 37. b3 {[%clk 0:01:18]}  Rd8 {[%clk 0:01:27]} 38. Kc2 {[%clk 0:01:13]}  e3 {[%clk 0:01:23]} 39. Qe1 {[%clk 0:01:07]}  Be4+ {[%clk 0:01:21]} 40. Kc3 {[%clk 0:01:06]}  Rd3+ {[%clk 0:01:20]} 41. Kb4 {[%clk 0:01:03]}  Bxg2 {[%clk 0:01:18]} 42. c5 {[%clk 0:00:52]}  Bf3 {[%clk 0:01:16]} 43. Ka5 {[%clk 0:00:45]}  e2 {[%clk 0:01:13]} 0-1


[Site "https://www.chess.com"]

[Event "Titled Tuesday Blitz April 05 Late 2022"]
[White "Iskusnyh, Sergei"]
[Black "Xiong, Jeffery"]
[WhiteFideId "4120027"]
[BlackFideId "2047640"]
[WhiteElo "2492"]
[BlackElo "2727"]
[Result "0-1"]
[Round "05"]
[TimeControl "180+1"]
[Date "2022.04.05"]
[WhiteClock "0:00:10"]
[BlackClock "0:02:26"]

1. d4 {[%clk 0:03:00]}  Nf6 {[%clk 0:03:00]} 2. c4 {[%clk 0:02:59]}  e6 {[%clk 0:03:00]} 3. g3 {[%clk 0:02:58]}  d5 {[%clk 0:02:55]} 4. Nf3 {[%clk 0:02:57]}  dxc4 {[%clk 0:02:55]} 5. Bg2 {[%clk 0:02:56]}  c6 {[%clk 0:02:56]} 6. a4 {[%clk 0:02:55]}  Bb4+ {[%clk 0:02:55]} 7. Bd2 {[%clk 0:02:29]}  a5 {[%clk 0:02:56]} 8. Qc2 {[%clk 0:02:19]}  O-O {[%clk 0:02:55]} 9. Qxc4 {[%clk 0:02:17]}  Bxd2+ {[%clk 0:02:56]} 10. Nbxd2 {[%clk 0:02:15]}  b6 {[%clk 0:02:56]} 11. Qc2 {[%clk 0:01:49]}  Ba6 {[%clk 0:02:55]} 12. Nc4 {[%clk 0:01:48]}  Nbd7 {[%clk 0:02:52]} 13. O-O {[%clk 0:01:42]}  Rc8 {[%clk 0:02:50]} 14. Nd6 {[%clk 0:01:23]}  Rc7 {[%clk 0:02:50]} 15. Ne5 {[%clk 0:01:10]}  Nd5 {[%clk 0:02:46]} 16. Nexf7 {[%clk 0:00:38]}  Rxf7 {[%clk 0:02:46]} 17. Nxf7 {[%clk 0:00:38]}  Kxf7 {[%clk 0:02:47]} 18. Qxh7 {[%clk 0:00:38]}  N7f6 {[%clk 0:02:48]} 19. Qc2 {[%clk 0:00:35]}  Nb4 {[%clk 0:02:48]} 20. Qd2 {[%clk 0:00:33]}  c5 {[%clk 0:02:47]} 21. Rfd1 {[%clk 0:00:30]}  cxd4 {[%clk 0:02:33]} 22. Qxd4 {[%clk 0:00:29]}  Rd7 {[%clk 0:02:31]} 23. Qxd7+ {[%clk 0:00:12]}  Nxd7 {[%clk 0:02:32]} 24. Rac1 {[%clk 0:00:11]}  Bxe2 {[%clk 0:02:27]} 25. Rd2 {[%clk 0:00:11]}  Bd3 {[%clk 0:02:27]} 26. Rcd1 {[%clk 0:00:10]}  Nc5 {[%clk 0:02:26]} 0-1


[Site "https://www.chess.com"]

[Event "Titled Tuesday Blitz April 05 Late 2022"]
[White "Jacobson, Brandon"]
[Black "Lashkin, Jegor"]
[WhiteFideId "30901561"]
[BlackFideId "13907808"]
[WhiteElo "2362"]
[BlackElo "2368"]
[Result "1-0"]
[Round "05"]
[TimeControl "180+1"]
[Date "2022.04.05"]
[WhiteClock "0:00:11"]
[BlackClock "0:00:06"]

1. Nf3 {[%clk 0:03:00]}  d5 {[%clk 0:02:59]} 2. e3 {[%clk 0:03:00]}  Nf6 {[%clk 0:02:59]} 3. c4 {[%clk 0:03:01]}  e6 {[%clk 0:02:59]} 4. Nc3 {[%clk 0:03:02]}  c5 {[%clk 0:02:59]} 5. cxd5 {[%clk 0:03:02]}  exd5 {[%clk 0:02:59]} 6. d4 {[%clk 0:03:03]}  Nc6 {[%clk 0:02:59]} 7. Bb5 {[%clk 0:03:04]}  cxd4 {[%clk 0:02:59]} 8. Nxd4 {[%clk 0:03:04]}  Bd7 {[%clk 0:02:59]} 9. O-O {[%clk 0:03:05]}  Bd6 {[%clk 0:02:59]} 10. Nf3 {[%clk 0:03:06]}  a6 {[%clk 0:02:59]} 11. Bxc6 {[%clk 0:03:05]}  bxc6 {[%clk 0:02:57]} 12. e4 {[%clk 0:03:06]}  Bb4 {[%clk 0:02:39]} 13. exd5 {[%clk 0:03:01]}  O-O {[%clk 0:02:28]} 14. d6 {[%clk 0:02:42]}  Be6 {[%clk 0:02:12]} 15. Bg5 {[%clk 0:02:31]}  h6 {[%clk 0:01:57]} 16. Bh4 {[%clk 0:02:10]}  g5 {[%clk 0:01:30]} 17. Bg3 {[%clk 0:01:58]}  Nd5 {[%clk 0:01:30]} 18. Nd4 {[%clk 0:01:59]}  Qd7 {[%clk 0:01:04]} 19. Nxe6 {[%clk 0:01:53]}  Qxe6 {[%clk 0:00:58]} 20. Re1 {[%clk 0:01:50]}  Qf6 {[%clk 0:00:33]} 21. Be5 {[%clk 0:01:50]}  Qg6 {[%clk 0:00:27]} 22. Qd4 {[%clk 0:01:16]}  Bxd6 {[%clk 0:00:19]} 23. Nxd5 {[%clk 0:01:16]}  cxd5 {[%clk 0:00:18]} 24. Qxd5 {[%clk 0:01:17]}  Bxe5 {[%clk 0:00:17]} 25. Qxe5 {[%clk 0:01:18]}  Rab8 {[%clk 0:00:16]} 26. Rad1 {[%clk 0:01:17]}  Rb5 {[%clk 0:00:16]} 27. Qc3 {[%clk 0:01:17]}  Rfb8 {[%clk 0:00:16]} 28. b3 {[%clk 0:01:17]}  R5b7 {[%clk 0:00:16]} 29. h3 {[%clk 0:01:17]}  Qg7 {[%clk 0:00:16]} 30. Qc6 {[%clk 0:01:16]}  Rb6 {[%clk 0:00:16]} 31. Qc7 {[%clk 0:01:16]}  Qf6 {[%clk 0:00:15]} 32. Rd3 {[%clk 0:01:06]}  R6b7 {[%clk 0:00:14]} 33. Qc4 {[%clk 0:01:04]}  Rb4 {[%clk 0:00:14]} 34. Qc5 {[%clk 0:01:03]}  R4b5 {[%clk 0:00:14]} 35. Qc1 {[%clk 0:01:01]}  Rf5 {[%clk 0:00:14]} 36. Qd2 {[%clk 0:01:01]}  Kg7 {[%clk 0:00:12]} 37. Re2 {[%clk 0:00:50]}  Rb6 {[%clk 0:00:12]} 38. Qc3 {[%clk 0:00:48]}  Qxc3 {[%clk 0:00:10]} 39. Rxc3 {[%clk 0:00:49]}  a5 {[%clk 0:00:11]} 40. Rc4 {[%clk 0:00:47]}  Rfb5 {[%clk 0:00:10]} 41. f3 {[%clk 0:00:46]}  Ra6 {[%clk 0:00:11]} 42. Ree4 {[%clk 0:00:45]}  Rab6 {[%clk 0:00:11]} 43. Kf2 {[%clk 0:00:44]}  Rd6 {[%clk 0:00:11]} 44. Red4 {[%clk 0:00:44]}  Re6 {[%clk 0:00:11]} 45. Re4 {[%clk 0:00:44]}  Reb6 {[%clk 0:00:12]} 46. Ke3 {[%clk 0:00:44]}  Rd6 {[%clk 0:00:12]} 47. Red4 {[%clk 0:00:44]}  Re6+ {[%clk 0:00:12]} 48. Kd2 {[%clk 0:00:44]}  Kf6 {[%clk 0:00:12]} 49. Re4 {[%clk 0:00:44]}  Rd6+ {[%clk 0:00:12]} 50. Rcd4 {[%clk 0:00:44]}  Rc6 {[%clk 0:00:13]} 51. Rc4 {[%clk 0:00:45]}  Rd6+ {[%clk 0:00:13]} 52. Kc2 {[%clk 0:00:45]}  Rbd5 {[%clk 0:00:13]} 53. Re2 {[%clk 0:00:44]}  Kg6 {[%clk 0:00:13]} 54. Kb2 {[%clk 0:00:43]}  h5 {[%clk 0:00:14]} 55. Rec2 {[%clk 0:00:43]}  f6 {[%clk 0:00:09]} 56. Rc5 {[%clk 0:00:43]}  Kf5 {[%clk 0:00:08]} 57. Rd2 {[%clk 0:00:35]}  Rxc5 {[%clk 0:00:07]} 58. Rxd6 {[%clk 0:00:36]}  g4 {[%clk 0:00:08]} 59. hxg4+ {[%clk 0:00:35]}  hxg4 {[%clk 0:00:08]} 60. fxg4+ {[%clk 0:00:36]}  Kg5 {[%clk 0:00:09]} 61. Rd4 {[%clk 0:00:35]}  Re5 {[%clk 0:00:09]} 62. Rd2 {[%clk 0:00:33]}  Kxg4 {[%clk 0:00:10]} 63. a3 {[%clk 0:00:33]}  Re4 {[%clk 0:00:09]} 64. Kc3 {[%clk 0:00:34]}  Re3+ {[%clk 0:00:09]} 65. Kc4 {[%clk 0:00:34]}  f5 {[%clk 0:00:09]} 66. b4 {[%clk 0:00:28]}  Rxa3 {[%clk 0:00:08]} 67. b5 {[%clk 0:00:28]}  Ra4+ {[%clk 0:00:09]} 68. Kc5 {[%clk 0:00:29]}  Rb4 {[%clk 0:00:09]} 69. Ra2 {[%clk 0:00:29]}  Kg3 {[%clk 0:00:07]} 70. b6 {[%clk 0:00:20]}  Rb1 {[%clk 0:00:07]} 71. Rxa5 {[%clk 0:00:16]}  Kxg2 {[%clk 0:00:07]} 72. Rb5 {[%clk 0:00:15]}  Re1 {[%clk 0:00:07]} 73. b7 {[%clk 0:00:09]}  Re5+ {[%clk 0:00:05]} 74. Kc4 {[%clk 0:00:09]}  Re8 {[%clk 0:00:05]} 75. b8=Q {[%clk 0:00:10]}  Rxb8 {[%clk 0:00:06]} 76. Rxb8 {[%clk 0:00:11]}  f4 {[%clk 0:00:07]} 77. Kd3 {[%clk 0:00:11]}  Kf3 {[%clk 0:00:06]} 78. Rf8 {[%clk 0:00:11]} 1-0


[Site "https://www.chess.com"]

[Event "Titled Tuesday Blitz April 05 Late 2022"]
[White "Janturin, Artur"]
[Black "Rorrer, Grayson"]
[WhiteFideId "4130022"]
[BlackFideId "30944996"]
[WhiteElo "2343"]
[BlackElo "2122"]
[Result "0-1"]
[Round "05"]
[TimeControl "180+1"]
[Date "2022.04.06"]
[WhiteClock "0:00:05"]
[BlackClock "0:00:15"]

1. b3 {[%clk 0:03:00]}  e5 {[%clk 0:03:00]} 2. Bb2 {[%clk 0:03:01]}  Nc6 {[%clk 0:03:00]} 3. e3 {[%clk 0:03:02]}  d5 {[%clk 0:03:01]} 4. Bb5 {[%clk 0:03:01]}  Bd6 {[%clk 0:03:01]} 5. f4 {[%clk 0:03:01]}  f6 {[%clk 0:03:01]} 6. Qh5+ {[%clk 0:03:00]}  g6 {[%clk 0:03:02]} 7. Qh4 {[%clk 0:03:01]}  exf4 {[%clk 0:02:59]} 8. exf4 {[%clk 0:02:43]}  Qe7+ {[%clk 0:02:51]} 9. Ne2 {[%clk 0:02:41]}  Bd7 {[%clk 0:02:52]} 10. Nc3 {[%clk 0:02:37]}  d4 {[%clk 0:02:52]} 11. Nd5 {[%clk 0:02:19]}  Qf7 {[%clk 0:01:54]} 12. c4 {[%clk 0:01:16]}  a6 {[%clk 0:01:47]} 13. Bxc6 {[%clk 0:00:37]}  bxc6 {[%clk 0:01:44]} 14. Nxf6+ {[%clk 0:00:36]}  Nxf6 {[%clk 0:01:16]} 15. Bxd4 {[%clk 0:00:36]}  O-O {[%clk 0:01:16]} 16. O-O {[%clk 0:00:34]}  c5 {[%clk 0:01:15]} 17. Bb2 {[%clk 0:00:28]}  Ne4 {[%clk 0:01:03]} 18. d3 {[%clk 0:00:27]}  Be7 {[%clk 0:01:03]} 19. Qe1 {[%clk 0:00:24]}  Bf6 {[%clk 0:01:01]} 20. Qc1 {[%clk 0:00:16]}  Bxb2 {[%clk 0:00:57]} 21. Qxb2 {[%clk 0:00:17]}  Qf6 {[%clk 0:00:56]} 22. Qa3 {[%clk 0:00:14]}  Nd6 {[%clk 0:00:42]} 23. Qxc5 {[%clk 0:00:14]}  Rae8 {[%clk 0:00:29]} 24. Ng3 {[%clk 0:00:14]}  Qd8 {[%clk 0:00:30]} 25. Kh1 {[%clk 0:00:10]}  Nf5 {[%clk 0:00:29]} 26. Ne4 {[%clk 0:00:10]}  Be6 {[%clk 0:00:23]} 27. Rad1 {[%clk 0:00:09]}  Qd4 {[%clk 0:00:21]} 28. Qc6 {[%clk 0:00:09]}  Ne3 {[%clk 0:00:18]} 29. Ng5 {[%clk 0:00:07]}  Nxd1 {[%clk 0:00:15]} 30. Nxe6 {[%clk 0:00:07]}  Nf2+ {[%clk 0:00:15]} 31. Kg1 {[%clk 0:00:05]}  Nh3+ {[%clk 0:00:15]} 0-1


[Site "https://www.chess.com"]

[Event "Titled Tuesday Blitz April 05 Late 2022"]
[White "Jarocka, Liwia"]
[Black "Harish, Neeraj"]
[WhiteFideId "21807558"]
[BlackFideId "30958130"]
[WhiteElo "1896"]
[BlackElo "1574"]
[Result "1-0"]
[Round "05"]
[TimeControl "180+1"]
[Date "2022.04.06"]
[WhiteClock "0:00:08"]
[BlackClock "0:00:05"]

1. e4 {[%clk 0:02:49]}  c5 {[%clk 0:02:50]} 2. Nf3 {[%clk 0:02:49]}  d6 {[%clk 0:02:50]} 3. d4 {[%clk 0:02:49]}  cxd4 {[%clk 0:02:50]} 4. Nxd4 {[%clk 0:02:50]}  Nf6 {[%clk 0:02:51]} 5. Nc3 {[%clk 0:02:50]}  a6 {[%clk 0:02:51]} 6. Be3 {[%clk 0:02:50]}  e5 {[%clk 0:02:50]} 7. Nb3 {[%clk 0:02:50]}  Be7 {[%clk 0:02:48]} 8. f3 {[%clk 0:02:50]}  O-O {[%clk 0:02:41]} 9. Qd2 {[%clk 0:02:50]}  h5 {[%clk 0:02:37]} 10. O-O-O {[%clk 0:02:47]}  Be6 {[%clk 0:02:35]} 11. h3 {[%clk 0:02:47]}  h4 {[%clk 0:02:28]} 12. Bg5 {[%clk 0:02:46]}  Nbd7 {[%clk 0:02:27]} 13. Bxh4 {[%clk 0:02:44]}  Rc8 {[%clk 0:02:27]} 14. Kb1 {[%clk 0:02:43]}  b5 {[%clk 0:02:25]} 15. Bf2 {[%clk 0:02:39]}  Nb6 {[%clk 0:02:11]} 16. Bxb6 {[%clk 0:02:31]}  Qxb6 {[%clk 0:02:10]} 17. Nd5 {[%clk 0:02:31]}  Nxd5 {[%clk 0:01:49]} 18. exd5 {[%clk 0:02:32]}  Bf5 {[%clk 0:01:50]} 19. Bd3 {[%clk 0:02:30]}  Bxd3 {[%clk 0:01:50]} 20. Qxd3 {[%clk 0:02:30]}  a5 {[%clk 0:01:50]} 21. Rc1 {[%clk 0:02:23]}  a4 {[%clk 0:01:48]} 22. Nd2 {[%clk 0:02:23]}  b4 {[%clk 0:01:44]} 23. h4 {[%clk 0:02:19]}  Rc7 {[%clk 0:01:37]} 24. c4 {[%clk 0:02:10]}  a3 {[%clk 0:01:18]} 25. b3 {[%clk 0:02:07]}  f5 {[%clk 0:01:15]} 26. g4 {[%clk 0:02:00]}  fxg4 {[%clk 0:01:13]} 27. fxg4 {[%clk 0:01:59]}  Rf4 {[%clk 0:01:13]} 28. Ne4 {[%clk 0:01:20]}  Rxg4 {[%clk 0:00:42]} 29. h5 {[%clk 0:01:11]}  Rg2 {[%clk 0:00:32]} 30. h6 {[%clk 0:01:03]}  Rb2+ {[%clk 0:00:19]} 31. Ka1 {[%clk 0:01:03]}  Qd4 {[%clk 0:00:18]} 32. Qxd4 {[%clk 0:00:54]}  exd4 {[%clk 0:00:19]} 33. Rhg1 {[%clk 0:00:45]}  Kh8 {[%clk 0:00:15]} 34. hxg7+ {[%clk 0:00:32]}  Kg8 {[%clk 0:00:15]} 35. Rg4 {[%clk 0:00:20]}  Bd8 {[%clk 0:00:12]} 36. Rcg1 {[%clk 0:00:17]}  Rf7 {[%clk 0:00:12]} 37. Rh1 {[%clk 0:00:14]}  Rxg7 {[%clk 0:00:11]} 38. Rxg7+ {[%clk 0:00:14]}  Kxg7 {[%clk 0:00:12]} 39. Nxd6 {[%clk 0:00:13]}  d3 {[%clk 0:00:11]} 40. Rg1+ {[%clk 0:00:12]}  Kh6 {[%clk 0:00:10]} 41. Ne4 {[%clk 0:00:12]}  d2 {[%clk 0:00:09]} 42. Rd1 {[%clk 0:00:10]}  Rc2 {[%clk 0:00:09]} 43. Nxd2 {[%clk 0:00:08]}  Bf6+ {[%clk 0:00:09]} 44. Kb1 {[%clk 0:00:09]}  Rb2+ {[%clk 0:00:09]} 45. Kc1 {[%clk 0:00:08]}  Rxa2 {[%clk 0:00:09]} 46. Ne4 {[%clk 0:00:08]}  Ra1+ {[%clk 0:00:09]} 47. Kc2 {[%clk 0:00:08]}  Ra2+ {[%clk 0:00:09]} 48. Kd3 {[%clk 0:00:08]}  Bb2 {[%clk 0:00:08]} 49. Rh1+ {[%clk 0:00:09]}  Kg6 {[%clk 0:00:08]} 50. d6 {[%clk 0:00:10]}  Kf7 {[%clk 0:00:07]} 51. Rf1+ {[%clk 0:00:08]}  Ke6 {[%clk 0:00:07]} 52. Rh1 {[%clk 0:00:08]}  Be5 {[%clk 0:00:05]} 53. Rh6+ {[%clk 0:00:08]}  Kd7 {[%clk 0:00:05]} 54. Rh7+ {[%clk 0:00:08]}  Kc6 {[%clk 0:00:05]} 55. Rc7+ {[%clk 0:00:08]}  Kb6 {[%clk 0:00:05]} 56. c5+ {[%clk 0:00:08]}  Kb5 {[%clk 0:00:05]} 57. Rb7+ {[%clk 0:00:09]}  Kc6 {[%clk 0:00:05]} 58. Rc7+ {[%clk 0:00:08]}  Kd5 {[%clk 0:00:05]} 59. d7 {[%clk 0:00:08]} 1-0


[Site "https://www.chess.com"]

[Event "Titled Tuesday Blitz April 05 Late 2022"]
[White "Jobava, Baadur"]
[Black "Constantinou, Peter"]
[WhiteFideId "13601520"]
[BlackFideId "413038"]
[WhiteElo "2617"]
[BlackElo "2230"]
[Result "1-0"]
[Round "05"]
[TimeControl "180+1"]
[Date "2022.04.05"]
[WhiteClock "0:01:52"]
[BlackClock "0:00:43"]

1. b3 {[%clk 0:03:00]}  a5 {[%clk 0:02:57]} 2. Bb2 {[%clk 0:03:01]}  a4 {[%clk 0:02:57]} 3. e3 {[%clk 0:03:02]}  e6 {[%clk 0:02:55]} 4. Nf3 {[%clk 0:03:02]}  Nf6 {[%clk 0:02:54]} 5. Be2 {[%clk 0:03:01]}  d5 {[%clk 0:02:53]} 6. O-O {[%clk 0:03:01]}  Be7 {[%clk 0:02:53]} 7. c4 {[%clk 0:02:57]}  O-O {[%clk 0:02:50]} 8. d3 {[%clk 0:02:56]}  b6 {[%clk 0:02:44]} 9. Nc3 {[%clk 0:02:56]}  a3 {[%clk 0:02:43]} 10. Bc1 {[%clk 0:02:56]}  Bb7 {[%clk 0:02:43]} 11. Bd2 {[%clk 0:02:51]}  c5 {[%clk 0:02:42]} 12. Rc1 {[%clk 0:02:50]}  Nc6 {[%clk 0:02:36]} 13. Re1 {[%clk 0:02:45]}  Nb4 {[%clk 0:02:36]} 14. Bf1 {[%clk 0:02:43]}  d4 {[%clk 0:02:35]} 15. exd4 {[%clk 0:02:42]}  cxd4 {[%clk 0:02:35]} 16. Nb5 {[%clk 0:02:42]}  Nxa2 {[%clk 0:02:33]} 17. Ra1 {[%clk 0:02:41]}  Bxf3 {[%clk 0:02:15]} 18. Qxf3 {[%clk 0:02:40]}  Nb4 {[%clk 0:02:15]} 19. Rxa3 {[%clk 0:02:33]}  Rxa3 {[%clk 0:01:54]} 20. Nxa3 {[%clk 0:02:34]}  Nxd3 {[%clk 0:01:55]} 21. Bxd3 {[%clk 0:02:35]}  Bxa3 {[%clk 0:01:55]} 22. b4 {[%clk 0:02:33]}  Qd6 {[%clk 0:01:43]} 23. Rb1 {[%clk 0:02:27]}  e5 {[%clk 0:01:23]} 24. Rb3 {[%clk 0:02:14]}  Qe6 {[%clk 0:01:09]} 25. Bf5 {[%clk 0:02:05]}  Qxc4 {[%clk 0:01:06]} 26. Rxa3 {[%clk 0:02:04]}  e4 {[%clk 0:00:52]} 27. Bxe4 {[%clk 0:02:01]}  Re8 {[%clk 0:00:52]} 28. Bd3 {[%clk 0:01:59]}  Qe6 {[%clk 0:00:44]} 29. h3 {[%clk 0:01:57]}  Nd5 {[%clk 0:00:43]} 30. Bc4 {[%clk 0:01:52]} 1-0


[Site "https://www.chess.com"]

[Event "Titled Tuesday Blitz April 05 Late 2022"]
[White "Kaganskiy, Gleb"]
[Black "Polok, Kacper"]
[WhiteFideId "4132025"]
[BlackFideId "1137158"]
[WhiteElo "2165"]
[BlackElo "2224"]
[Result "1-0"]
[Round "05"]
[TimeControl "180+1"]
[Date "2022.04.06"]
[WhiteClock "0:00:37"]
[BlackClock "0:00:53"]

1. e4 {[%clk 0:03:00]}  c5 {[%clk 0:02:59]} 2. Nf3 {[%clk 0:02:57]}  Nc6 {[%clk 0:02:59]} 3. Bb5 {[%clk 0:02:55]}  d6 {[%clk 0:02:57]} 4. Bxc6+ {[%clk 0:02:54]}  bxc6 {[%clk 0:02:57]} 5. e5 {[%clk 0:02:55]}  d5 {[%clk 0:02:57]} 6. d3 {[%clk 0:02:54]}  Bg4 {[%clk 0:02:56]} 7. h3 {[%clk 0:02:53]}  Bxf3 {[%clk 0:02:56]} 8. Qxf3 {[%clk 0:02:52]}  e6 {[%clk 0:02:57]} 9. O-O {[%clk 0:02:51]}  Ne7 {[%clk 0:02:54]} 10. c4 {[%clk 0:02:50]}  h5 {[%clk 0:02:54]} 11. b3 {[%clk 0:02:48]}  Nf5 {[%clk 0:02:53]} 12. Bb2 {[%clk 0:02:44]}  g5 {[%clk 0:02:36]} 13. g3 {[%clk 0:02:20]}  Bg7 {[%clk 0:02:26]} 14. Re1 {[%clk 0:02:02]}  Qa5 {[%clk 0:02:02]} 15. Nc3 {[%clk 0:01:47]}  O-O-O {[%clk 0:02:01]} 16. a3 {[%clk 0:01:41]}  Qc7 {[%clk 0:02:01]} 17. Na4 {[%clk 0:01:38]}  Qe7 {[%clk 0:01:55]} 18. b4 {[%clk 0:01:32]}  cxb4 {[%clk 0:01:52]} 19. axb4 {[%clk 0:01:33]}  Qxb4 {[%clk 0:01:49]} 20. Reb1 {[%clk 0:01:29]}  g4 {[%clk 0:01:31]} 21. Qd1 {[%clk 0:01:14]}  dxc4 {[%clk 0:01:17]} 22. Bd4 {[%clk 0:01:06]}  Qxb1 {[%clk 0:01:08]} 23. Qxb1 {[%clk 0:00:59]}  Nxd4 {[%clk 0:01:07]} 24. Nc5 {[%clk 0:00:46]}  Rd5 {[%clk 0:00:54]} 25. Qb7+ {[%clk 0:00:41]}  Kd8 {[%clk 0:00:53]} 26. Qb8+ {[%clk 0:00:37]}  Ke7 {[%clk 0:00:53]} 27. Rxa7+ {[%clk 0:00:37]} 1-0


[Site "https://www.chess.com"]

[Event "Titled Tuesday Blitz April 05 Late 2022"]
[White "Kazakouski, Valery"]
[Black "Nasuta, Grzegorz"]
[WhiteFideId "13507443"]
[BlackFideId "1141686"]
[WhiteElo "2524"]
[BlackElo "2396"]
[Result "1-0"]
[Round "05"]
[TimeControl "180+1"]
[Date "2022.04.05"]
[WhiteClock "0:00:31"]
[BlackClock "0:00:01"]

1. d4 {[%clk 0:02:53]}  Nf6 {[%clk 0:02:45]} 2. c4 {[%clk 0:02:52]}  e6 {[%clk 0:02:45]} 3. Nf3 {[%clk 0:02:51]}  c5 {[%clk 0:02:44]} 4. d5 {[%clk 0:02:51]}  b5 {[%clk 0:02:44]} 5. dxe6 {[%clk 0:02:51]}  fxe6 {[%clk 0:02:44]} 6. cxb5 {[%clk 0:02:52]}  d5 {[%clk 0:02:42]} 7. Nc3 {[%clk 0:02:53]}  Bb7 {[%clk 0:02:30]} 8. e3 {[%clk 0:02:50]}  Bd6 {[%clk 0:02:26]} 9. e4 {[%clk 0:02:50]}  Nbd7 {[%clk 0:02:26]} 10. Bd3 {[%clk 0:02:20]}  d4 {[%clk 0:02:04]} 11. Ne2 {[%clk 0:02:12]}  Nxe4 {[%clk 0:01:55]} 12. Ng3 {[%clk 0:02:12]}  Nef6 {[%clk 0:01:49]} 13. Qe2 {[%clk 0:02:09]}  Qe7 {[%clk 0:01:41]} 14. O-O {[%clk 0:02:02]}  O-O {[%clk 0:01:40]} 15. Bg5 {[%clk 0:02:00]}  Rae8 {[%clk 0:01:36]} 16. Rae1 {[%clk 0:01:55]}  Qf7 {[%clk 0:01:23]} 17. Bxf6 {[%clk 0:01:42]}  gxf6 {[%clk 0:01:08]} 18. Bc4 {[%clk 0:01:42]}  Kh8 {[%clk 0:00:24]} 19. Bxe6 {[%clk 0:01:20]}  Bxf3 {[%clk 0:00:15]} 20. Bxf7 {[%clk 0:01:21]}  Rxe2 {[%clk 0:00:13]} 21. Nxe2 {[%clk 0:01:17]}  Bxe2 {[%clk 0:00:13]} 22. Rxe2 {[%clk 0:01:11]}  Rxf7 {[%clk 0:00:13]} 23. Re6 {[%clk 0:01:12]}  Bf8 {[%clk 0:00:11]} 24. Rd1 {[%clk 0:01:09]}  Nb6 {[%clk 0:00:10]} 25. b4 {[%clk 0:01:02]}  Rd7 {[%clk 0:00:02]} 26. bxc5 {[%clk 0:00:53]}  Bxc5 {[%clk 0:00:03]} 27. Rxf6 {[%clk 0:00:54]}  d3 {[%clk 0:00:02]} 28. Rf5 {[%clk 0:00:54]}  Bb4 {[%clk 0:00:02]} 29. Rf4 {[%clk 0:00:53]}  Ba5 {[%clk 0:00:02]} 30. Re4 {[%clk 0:00:49]}  d2 {[%clk 0:00:03]} 31. Kf1 {[%clk 0:00:48]}  Nd5 {[%clk 0:00:03]} 32. Rd4 {[%clk 0:00:48]}  Rd8 {[%clk 0:00:02]} 33. g3 {[%clk 0:00:46]}  Kg7 {[%clk 0:00:02]} 34. Kg2 {[%clk 0:00:33]}  Kf6 {[%clk 0:00:02]} 35. Kf3 {[%clk 0:00:33]}  Rd7 {[%clk 0:00:01]} 36. h4 {[%clk 0:00:31]}  Ke5 {[%clk 0:00:01]} 37. Re4+ {[%clk 0:00:31]}  Kd6 {[%clk 0:00:01]} 38. Rc4 {[%clk 0:00:31]} 1-0


[Site "https://www.chess.com"]